fUSD/lending_fUSD_20250629
["ID","MTS","AMOUNT","RATE_DAILY","PERIOD"]
[368505310,1751191853733,-1338.01,0.00028492,3]
[368505311,1751191853742,-2114.1,0.00028492,3]
[368505313,1751191853751,-490.0,0.00028493,3]
[368505315,1751191853760,-490.0,0.00028493,3]
[368505317,1751191853769,-490.0,0.00028493,3]
[368505319,1751191853778,-1439.59,0.00028493,3]
[368505321,1751191853787,-490.0,0.00028493,3]
[368505323,1751191853795,-595.0,0.00028493,3]
[368505325,1751191853805,-468.48956751,0.00028493,3]
[368505327,1751191853814,-1624.13,0.00028493,3]
[368505329,1751191853823,-1134.44,0.00028493,3]
[368505331,1751191853833,-490.0,0.00028493,3]
[368505333,1751191853845,-288.63972062,0.00028493,3]
[368505335,1751191853854,-490.0,0.00028493,3]
[368505337,1751191853863,-1604.43,0.00028493,3]
[368505339,1751191853872,-490.0,0.00028493,3]
[368505341,1751191853882,-1174.46,0.00028493,3]
[368505343,1751191853891,-1771.99,0.00028493,3]
[368505344,1751191853900,-490.0,0.00028493,3]
[368505347,1751191853910,-697.9,0.00028493,3]
[368505349,1751191853919,-230.28,0.00028493,3]
[368505351,1751191853928,-490.0,0.00028493,3]
[368505353,1751191853938,-1276.32,0.00028493,3]
[368505355,1751191853947,-490.0,0.00028493,3]
[368505357,1751191853956,-829.63,0.00028493,3]
[368505359,1751191853965,-490.0,0.00028493,3]
[368505361,1751191853975,-1091.18,0.00028493,3]
[368505363,1751191853984,-490.0,0.00028493,3]
[368505365,1751191853993,-490.0,0.00028493,3]
[368505367,1751191854002,-1264.85,0.00028493,3]
[368505368,1751191854013,-1402.48,0.00028493,3]
[368505371,1751191854022,-956.7,0.00028493,3]
[368505372,1751191854031,-511.24426235,0.00028493,3]
[368505374,1751191854039,-490.0,0.00028493,3]
[368505376,1751191854048,-544.41,0.00028493,3]
[368505378,1751191854057,-490.0,0.00028493,3]
[368505380,1751191854066,-837.64,0.00028493,3]
[368505382,1751191854075,-527.67,0.00028493,3]
[368505384,1751191854084,-490.0,0.00028493,3]
[368505386,1751191854094,-490.0,0.00028493,3]
[368505388,1751191854103,-490.0,0.00028493,3]
[368505390,1751191854112,-824.84,0.00028493,3]
[368505392,1751191854121,-490.0,0.00028493,3]
[368505394,1751191854130,-664.05,0.00028493,3]
[368505396,1751191854139,-776.65,0.00028493,3]
[368505398,1751191854148,-490.0,0.00028493,3]
[368505400,1751191854158,-490.0,0.00028493,3]
[368505402,1751191854167,-490.0,0.00028493,3]
[368505404,1751191854176,-490.0,0.00028493,3]
[368505406,1751191854186,-490.0,0.00028493,3]
[368505408,1751191854196,-334.6630488,0.00028493,3]
[368505410,1751191854205,-490.0,0.00028493,3]
[368505412,1751191854215,-490.0,0.00028493,3]
[368505414,1751191854224,-490.0,0.00028493,3]
[368505416,1751191854234,-609.68,0.00028493,3]
[368505418,1751191854243,-787.44,0.00028493,3]
[368505420,1751191854253,-490.0,0.00028493,3]
[368505422,1751191854262,-490.0,0.00028493,3]
[368505424,1751191854271,-490.0,0.00028493,3]
[368505426,1751191854280,-626.84,0.00028493,3]
[368505428,1751191854289,-490.0,0.00028493,3]
[368505430,1751191854298,-394.88,0.00028493,3]
[368505432,1751191854307,-304.2,0.00028493,3]
[368505434,1751191854317,-490.0,0.00028493,3]
[368505436,1751191854325,-919.46,0.00028493,3]
[368505438,1751191854334,-1237.83,0.00028493,3]
[368505440,1751191854344,-490.0,0.00028493,3]
[368505442,1751191854353,-1356.02,0.00028493,3]
[368505444,1751191854362,-2516.86,0.00028493,3]
[368505446,1751191854371,-490.0,0.00028493,3]
[368505448,1751191854380,-490.0,0.00028493,3]
[368505449,1751191854392,-490.0,0.00028493,3]
[368505451,1751191854402,-490.0,0.00028493,3]
[368505454,1751191854411,-490.0,0.00028493,3]
[368505455,1751191854420,-490.0,0.00028493,3]
[368505457,1751191854430,-490.0,0.00028493,3]
[368505459,1751191854440,-3998.31,0.00028493,3]
[368505462,1751191854450,-490.0,0.00028493,3]
[368505464,1751191854460,-490.0,0.00028493,3]
[368505465,1751191854469,-490.0,0.00028493,3]
[368505468,1751191854479,-490.0,0.00028493,3]
[368505469,1751191854488,-490.0,0.00028493,3]
[368505472,1751191854498,-550.17715741,0.00028493,3]
[368505473,1751191854507,-638.82,0.00028493,3]
[368505475,1751191854516,-490.0,0.00028493,3]
[368505477,1751191854525,-681.68,0.00028493,3]
[368505479,1751191854534,-490.0,0.00028493,3]
[368505482,1751191854543,-368.86,0.00028493,3]
[368505484,1751191854553,-353.7,0.00028493,3]
[368505486,1751191854562,-490.0,0.00028493,3]
[368505487,1751191854571,-294.95,0.00028493,3]
[368505489,1751191854580,-1135.09,0.00028493,3]
[368505491,1751191854589,-6626.58,0.00028493,3]
[368505493,1751191854599,-490.0,0.00028493,3]
[368505495,1751191854608,-490.0,0.00028493,3]
[368505497,1751191854617,-490.0,0.00028493,3]
[368505500,1751191854627,-189.69,0.00028493,3]
[368505502,1751191854636,-490.0,0.00028493,3]
[368505503,1751191854645,-1376.87,0.00028493,3]
[368505505,1751191854655,-492.26657809,0.00028493,3]
[368505507,1751191854664,-490.0,0.00028493,3]
[368505509,1751191854673,-490.0,0.00028493,3]
[368505511,1751191854684,-6577.2,0.00028493,3]
[368505514,1751191854693,-1283.04,0.00028493,3]
[368505515,1751191854703,-1459.1,0.00028493,3]
[368505517,1751191854712,-490.0,0.00028493,3]
[368505519,1751191854722,-1254.52,0.00028493,3]
[368505522,1751191854731,-490.0,0.00028493,3]
[368505524,1751191854742,-607.2,0.00028493,3]
[368505526,1751191854751,-490.0,0.00028493,3]
[368505528,1751191854760,-769.1,0.00028493,3]
[368505530,1751191854770,-490.0,0.00028493,3]
[368505532,1751191854779,-217.28,0.00028493,3]
[368505534,1751191854788,-511.92,0.00028493,3]
[368505535,1751191854798,-490.0,0.00028493,3]
[368505537,1751191854807,-490.0,0.00028493,3]
[368505539,1751191854816,-1039.8,0.00028493,3]
[368505541,1751191854825,-490.0,0.00028493,3]
[368505543,1751191854834,-1495.28,0.00028493,3]
[368505545,1751191854843,-490.0,0.00028493,3]
[368505547,1751191854853,-1396.26,0.00028493,3]
[368505550,1751191854862,-490.0,0.00028493,3]
[368505552,1751191854873,-2746.27,0.00028493,3]
[368505554,1751191854885,-490.0,0.00028493,3]
[368505555,1751191854895,-490.0,0.00028493,3]
[368505557,1751191854904,-2169.03,0.00028493,3]
[368505559,1751191854913,-415.47872004,0.00028521,5]
[368505561,1751191854924,-183.64727923,0.00028644,2]
[368505563,1751191854933,-8935.40263509,0.00028645,2]
[368505565,1751191854942,-490.0,0.00028766,3]
[368505567,1751191854953,-644.45,0.00028766,3]
[368505569,1751191854964,-490.0,0.00028766,3]
[368505571,1751191854974,-827.41,0.00028766,3]
[368505573,1751191854983,-633.95,0.00028766,3]
[368505575,1751191854992,-285.82663298,0.00028766,3]
[368505577,1751191855000,-490.0,0.00028766,3]
[368505579,1751191855009,-490.0,0.00028766,3]
[368505581,1751191855019,-5628.57,0.00028766,3]
[368505583,1751191855028,-490.0,0.00028766,3]
[368505585,1751191855037,-490.0,0.00028766,3]
[368505587,1751191855046,-490.0,0.00028766,3]
[368505589,1751191855056,-2335.52,0.00028766,3]
[368505591,1751191855066,-490.0,0.00028766,3]
[368505593,1751191855075,-490.0,0.00028766,3]
[368505595,1751191855084,-490.0,0.00028766,3]
[368505597,1751191855093,-619.96,0.00028766,3]
[368505611,1751191855210,-13786.25,0.00028766,3]
[368505613,1751191855220,-490.0,0.00028766,3]
[368505615,1751191855230,-500.0,0.00028766,3]
[368505617,1751191855240,-490.0,0.00028766,3]
[368505619,1751191855250,-490.0,0.00028766,3]
[368505621,1751191855260,-13119.86,0.00028766,3]
[368505623,1751191855271,-500.0,0.00028766,3]
[368505625,1751191855280,-403.96,0.00028766,3]
[368505627,1751191855290,-1338.01,0.00028766,3]
[368505629,1751191855300,-2114.1,0.00028766,3]
[368505631,1751191855309,-386.27871835,0.00028767,3]
[368505633,1751191855319,-490.0,0.00028767,3]
[368505635,1751191855328,-490.0,0.00028767,3]
[368505637,1751191855338,-1439.59,0.00028767,3]
[368505639,1751191855347,-490.0,0.00028767,3]
[368505641,1751191855357,-595.0,0.00028767,3]
[368505643,1751191855366,-1624.13,0.00028767,3]
[368505645,1751191855375,-1134.44,0.00028767,3]
[368505647,1751191855384,-490.0,0.00028767,3]
[368505649,1751191855394,-490.0,0.00028767,3]
[368505651,1751191855403,-1604.43,0.00028767,3]
[368505653,1751191855412,-490.0,0.00028767,3]
[368505655,1751191855422,-1174.46,0.00028767,3]
[368505657,1751191855431,-1771.99,0.00028767,3]
[368505659,1751191855442,-490.0,0.00028767,3]
[368505661,1751191855452,-697.9,0.00028767,3]
[368505663,1751191855461,-490.0,0.00028767,3]
[368505665,1751191855471,-1276.32,0.00028767,3]
[368505667,1751191855480,-490.0,0.00028767,3]
[368505669,1751191855489,-829.63,0.00028767,3]
[368505671,1751191855499,-490.0,0.00028767,3]
[368505673,1751191855508,-1091.18,0.00028767,3]
[368505675,1751191855517,-490.0,0.00028767,3]
[368505677,1751191855527,-490.0,0.00028767,3]
[368505679,1751191855536,-1264.85,0.00028767,3]
[368505681,1751191855545,-1402.48,0.00028767,3]
[368505683,1751191855554,-956.7,0.00028767,3]
[368505685,1751191855564,-490.0,0.00028767,3]
[368505687,1751191855573,-544.41,0.00028767,3]
[368505689,1751191855582,-490.0,0.00028767,3]
[368505691,1751191855591,-837.64,0.00028767,3]
[368505693,1751191855600,-527.67,0.00028767,3]
[368505695,1751191855610,-490.0,0.00028767,3]
[368505697,1751191855619,-527.42352944,0.00028767,3]
[368505699,1751191855628,-490.0,0.00028767,3]
[368505701,1751191855638,-824.84,0.00028767,3]
[368505703,1751191855647,-490.0,0.00028767,3]
[368505705,1751191855656,-664.05,0.00028767,3]
[368505707,1751191855666,-776.65,0.00028767,3]
[368505709,1751191855675,-490.0,0.00028767,3]
[368505711,1751191855684,-490.0,0.00028767,3]
[368505713,1751191855694,-490.0,0.00028767,3]
[368505715,1751191855703,-490.0,0.00028767,3]
[368505717,1751191855713,-490.0,0.00028767,3]
[368505720,1751191855722,-490.0,0.00028767,3]
[368505721,1751191855731,-193.1,0.00028767,3]
[368505724,1751191855741,-490.0,0.00028767,3]
[368505726,1751191855750,-609.68,0.00028767,3]
[368505727,1751191855759,-787.44,0.00028767,3]
[368505730,1751191855768,-490.0,0.00028767,3]
[368505732,1751191855778,-153.64,0.00028767,3]
[368505734,1751191855787,-490.0,0.00028767,3]
[368505736,1751191855797,-490.0,0.00028767,3]
[368505738,1751191855806,-434.48194708,0.00028767,3]
[368505740,1751191855815,-919.46,0.00028767,3]
[368505742,1751191855824,-1237.83,0.00028767,3]
[368505744,1751191855834,-490.0,0.00028767,3]
[368505746,1751191855843,-1356.02,0.00028767,3]
[368505748,1751191855853,-2516.86,0.00028767,3]
[368505750,1751191855862,-490.0,0.00028767,3]
[368505752,1751191855871,-490.0,0.00028767,3]
[368505754,1751191855884,-490.0,0.00028767,3]
[368505756,1751191855893,-490.0,0.00028767,3]
[368505758,1751191855903,-490.0,0.00028767,3]
[368505760,1751191855911,-490.0,0.00028767,3]
[368505762,1751191855921,-490.0,0.00028767,3]
[368505764,1751191855930,-3998.31,0.00028767,3]
[368505766,1751191855942,-490.0,0.00028767,3]
[368505768,1751191855953,-490.0,0.00028767,3]
[368505770,1751191855962,-266.79,0.00028767,3]
[368505772,1751191855971,-172.98,0.00028767,3]
[368505774,1751191855980,-490.0,0.00028767,3]
[368505776,1751191855990,-420.07,0.00028767,3]
[368505778,1751191855999,-681.68,0.00028767,3]
[368505780,1751191856008,-490.0,0.00028767,3]
[368505782,1751191856017,-490.0,0.00028767,3]
[368505784,1751191856026,-1135.09,0.00028767,3]
[368505786,1751191856035,-6626.58,0.00028767,3]
[368505788,1751191856044,-490.0,0.00028767,3]
[368505790,1751191856054,-490.0,0.00028767,3]
[368505792,1751191856063,-490.0,0.00028767,3]
[368505794,1751191856073,-490.0,0.00028767,3]
[368505796,1751191856082,-1376.87,0.00028767,3]
[368505799,1751191856092,-490.0,0.00028767,3]
[368505801,1751191856101,-490.0,0.00028767,3]
[368505803,1751191856110,-6577.2,0.00028767,3]
[368505805,1751191856120,-1283.04,0.00028767,3]
[368505807,1751191856130,-1459.1,0.00028767,3]
[368505809,1751191856140,-490.0,0.00028767,3]
[368505811,1751191856150,-1254.52,0.00028767,3]
[368505813,1751191856159,-490.0,0.00028767,3]
[368505815,1751191856169,-490.0,0.00028767,3]
[368505817,1751191856178,-769.1,0.00028767,3]
[368505819,1751191856188,-490.0,0.00028767,3]
[368505821,1751191856198,-511.92,0.00028767,3]
[368505823,1751191856207,-490.0,0.00028767,3]
[368505825,1751191856216,-490.0,0.00028767,3]
[368505827,1751191856226,-1039.8,0.00028767,3]
[368505829,1751191856236,-261.94,0.00028767,3]
[368505831,1751191856245,-1495.28,0.00028767,3]
[368505833,1751191856255,-490.0,0.00028767,3]
[368505835,1751191856264,-1396.26,0.00028767,3]
[368505837,1751191856273,-490.0,0.00028767,3]
[368505839,1751191856282,-2746.27,0.00028767,3]
[368505841,1751191856293,-490.0,0.00028767,3]
[368505843,1751191856302,-175.95,0.00028767,3]
[368505845,1751191856311,-2169.03,0.00028767,3]
[368505847,1751191856321,-1500.0,0.00028768,5]
[368505849,1751191856331,-800.0,0.000289,10]
[368505851,1751191856340,-171.92554654,0.00028929,2]
[368505853,1751191856350,-151.3643144,0.00028929,2]
[368505855,1751191856360,-420.0,0.00028977,2]
[368505857,1751191856369,-169.0,0.00029,120]
[368505859,1751191856379,-100145.15632342,0.00029,3]
[368505861,1751191856388,-510.36910173,0.00029016,5]
[368505863,1751191856398,-157.84265156,0.00029032,2]
[368505865,1751191856407,-644.45,0.0002904,3]
[368505867,1751191856416,-490.0,0.0002904,3]
[368505869,1751191856426,-827.41,0.0002904,3]
[368505871,1751191856435,-633.95,0.0002904,3]
[368505873,1751191856445,-490.0,0.0002904,3]
[368505875,1751191856454,-260.2,0.0002904,3]
[368505877,1751191856464,-5628.57,0.0002904,3]
[368505880,1751191856474,-490.0,0.0002904,3]
[368505882,1751191856484,-490.0,0.0002904,3]
[368505884,1751191856493,-490.0,0.0002904,3]
[368505886,1751191856502,-2335.52,0.0002904,3]
[368505888,1751191856512,-490.0,0.0002904,3]
[368505890,1751191856522,-490.0,0.0002904,3]
[368505892,1751191856531,-490.0,0.0002904,3]
[368505894,1751191856541,-500.0,0.0002904,3]
[368505896,1751191856550,-13786.25,0.0002904,3]
[368505898,1751191856560,-490.0,0.0002904,3]
[368505900,1751191856570,-490.0,0.0002904,3]
[368505902,1751191856579,-490.0,0.0002904,3]
[368505904,1751191856589,-13119.86,0.0002904,3]
[368505906,1751191856598,-1338.01,0.0002904,3]
[368505908,1751191856607,-2114.1,0.0002904,3]
[368505910,1751191856617,-490.0,0.00029041,3]
[368505912,1751191856626,-490.0,0.00029041,3]
[368505914,1751191856635,-1439.59,0.00029041,3]
[368505916,1751191856644,-514.36070717,0.00029041,3]
[368505918,1751191856653,-595.0,0.00029041,3]
[368505920,1751191856662,-1624.13,0.00029041,3]
[368505922,1751191856672,-1134.44,0.00029041,3]
[368505924,1751191856681,-490.0,0.00029041,3]
[368505926,1751191856690,-490.0,0.00029041,3]
[368505928,1751191856699,-1604.43,0.00029041,3]
[368505930,1751191856709,-490.0,0.00029041,3]
[368505932,1751191856718,-1174.46,0.00029041,3]
[368505934,1751191856727,-1771.99,0.00029041,3]
[368505936,1751191856736,-490.0,0.00029041,3]
[368505938,1751191856745,-697.9,0.00029041,3]
[368505940,1751191856755,-490.0,0.00029041,3]
[368505942,1751191856764,-1276.32,0.00029041,3]
[368505944,1751191856774,-490.0,0.00029041,3]
[368505945,1751191856783,-829.63,0.00029041,3]
[368505946,1751191856792,-490.0,0.00029041,3]
[368505947,1751191856801,-1091.18,0.00029041,3]
[368505948,1751191856810,-490.0,0.00029041,3]
[368505949,1751191856819,-490.0,0.00029041,3]
[368505950,1751191856828,-1264.85,0.00029041,3]
[368505951,1751191856837,-1402.48,0.00029041,3]
[368505952,1751191856846,-956.7,0.00029041,3]
[368505953,1751191856855,-490.0,0.00029041,3]
[368505954,1751191856863,-544.41,0.00029041,3]
[368505955,1751191856872,-490.0,0.00029041,3]
[368505956,1751191856885,-837.64,0.00029041,3]
[368505957,1751191856894,-527.67,0.00029041,3]
[368505958,1751191856904,-490.0,0.00029041,3]
[368505960,1751191856913,-490.0,0.00029041,3]
[368505962,1751191856923,-824.84,0.00029041,3]
[368505964,1751191856932,-490.0,0.00029041,3]
[368505966,1751191856942,-664.05,0.00029041,3]
[368505968,1751191856951,-776.65,0.00029041,3]
[368505970,1751191856960,-490.0,0.00029041,3]
[368505972,1751191856969,-490.0,0.00029041,3]
[368505974,1751191856978,-490.0,0.00029041,3]
[368505976,1751191856988,-490.0,0.00029041,3]
[368505978,1751191856998,-490.0,0.00029041,3]
[368505980,1751191857007,-514.6,0.00029041,3]
[368505982,1751191857017,-490.0,0.00029041,3]
[368505984,1751191857026,-609.68,0.00029041,3]
[368505986,1751191857035,-787.44,0.00029041,3]
[368505988,1751191857045,-490.0,0.00029041,3]
[368505990,1751191857055,-490.0,0.00029041,3]
[368505992,1751191857064,-490.0,0.00029041,3]
[368505994,1751191857073,-919.46,0.00029041,3]
[368505996,1751191857083,-1237.83,0.00029041,3]
[368505998,1751191857092,-490.0,0.00029041,3]
[368506000,1751191857102,-1356.02,0.00029041,3]
[368506002,1751191857112,-490.0,0.00029041,3]
[368506004,1751191857122,-2516.86,0.00029041,3]
[368506006,1751191857131,-490.0,0.00029041,3]
[368506008,1751191857140,-490.0,0.00029041,3]
[368506010,1751191857150,-490.0,0.00029041,3]
[368506012,1751191857159,-230.54,0.00029041,3]
[368506014,1751191857169,-490.0,0.00029041,3]
[368506016,1751191857178,-490.0,0.00029041,3]
[368506018,1751191857188,-3998.31,0.00029041,3]
[368506020,1751191857197,-585.32948402,0.00029041,3]
[368506022,1751191857207,-490.0,0.00029041,3]
[368506024,1751191857218,-681.68,0.00029041,3]
[368506027,1751191857228,-490.0,0.00029041,3]
[368506029,1751191857239,-490.0,0.00029041,3]
[368506031,1751191857249,-1135.09,0.00029041,3]
[368506033,1751191857259,-6626.58,0.00029041,3]
[368506035,1751191857268,-490.0,0.00029041,3]
[368506037,1751191857278,-490.0,0.00029041,3]
[368506039,1751191857288,-490.0,0.00029041,3]
[368506067,1751191857511,-490.0,0.00029041,3]
[368506070,1751191857560,-1376.87,0.00029041,3]
[368506072,1751191857570,-490.0,0.00029041,3]
[368506074,1751191857580,-490.0,0.00029041,3]
[368506076,1751191857589,-6577.2,0.00029041,3]
[368506078,1751191857600,-1283.04,0.00029041,3]
[368506080,1751191857610,-1459.1,0.00029041,3]
[368506082,1751191857619,-540.40634998,0.00029041,3]
[368506084,1751191857629,-1254.52,0.00029041,3]
[368506086,1751191857639,-490.0,0.00029041,3]
[368506088,1751191857648,-490.0,0.00029041,3]
[368506090,1751191857658,-769.1,0.00029041,3]
[368506092,1751191857668,-490.0,0.00029041,3]
[368506094,1751191857677,-511.92,0.00029041,3]
[368506096,1751191857687,-490.0,0.00029041,3]
[368506098,1751191857697,-490.0,0.00029041,3]
[368506100,1751191857706,-1039.8,0.00029041,3]
[368506102,1751191857716,-1495.28,0.00029041,3]
[368506104,1751191857725,-375.32,0.00029041,3]
[368506106,1751191857735,-1396.26,0.00029041,3]
[368506108,1751191857745,-490.0,0.00029041,3]
[368506110,1751191857755,-2746.27,0.00029041,3]
[368506112,1751191857765,-490.0,0.00029041,3]
[368506114,1751191857775,-2169.03,0.00029041,3]
[368506116,1751191857784,-1680.0,0.00029105,2]
[368506117,1751191857794,-156.0,0.00029155,2]
[368506119,1751191857803,-3355.555,0.00029155,2]
[368506121,1751191857813,-168.0,0.00029211,2]
[368506123,1751191857822,-644.45,0.00029314,3]
[368506125,1751191857832,-490.0,0.00029314,3]
[368506127,1751191857841,-827.41,0.00029314,3]
[368506129,1751191857851,-633.95,0.00029314,3]
[368506131,1751191857860,-549.36560819,0.00029314,3]
[368506133,1751191857869,-5628.57,0.00029314,3]
[368506135,1751191857883,-490.0,0.00029314,3]
[368506137,1751191857892,-490.0,0.00029314,3]
[368506139,1751191857902,-490.0,0.00029314,3]
[368506140,1751191857912,-2335.52,0.00029314,3]
[368506142,1751191857922,-424.35,0.00029314,3]
[368506144,1751191857932,-490.0,0.00029314,3]
[368506146,1751191857942,-490.0,0.00029314,3]
[368506148,1751191857953,-13786.25,0.00029314,3]
[368506150,1751191857963,-500.0,0.00029314,3]
[368506152,1751191857972,-490.0,0.00029314,3]
[368506154,1751191857982,-490.0,0.00029314,3]
[368506156,1751191857993,-490.0,0.00029314,3]
[368506158,1751191858002,-13119.86,0.00029314,3]
[368506160,1751191858011,-500.0,0.00029314,3]
[368506162,1751191858021,-1338.01,0.00029314,3]
[368506164,1751191858031,-2114.1,0.00029314,3]
[368506166,1751191858040,-379.99349337,0.00029315,3]
[368506168,1751191858050,-490.0,0.00029315,3]
[368506170,1751191858063,-1439.59,0.00029315,3]
[368506172,1751191858073,-595.0,0.00029315,3]
[368506174,1751191858083,-1624.13,0.00029315,3]
[368506176,1751191858092,-1134.44,0.00029315,3]
[368506178,1751191858101,-490.0,0.00029315,3]
[368506180,1751191858111,-490.0,0.00029315,3]
[368506182,1751191858120,-1604.43,0.00029315,3]
[368506184,1751191858130,-490.0,0.00029315,3]
[368506186,1751191858139,-1174.46,0.00029315,3]
[368506188,1751191858149,-1771.99,0.00029315,3]
[368506190,1751191858158,-490.0,0.00029315,3]
[368506191,1751191858168,-697.9,0.00029315,3]
[368506194,1751191858179,-490.0,0.00029315,3]
[368506196,1751191858188,-1276.32,0.00029315,3]
[368506198,1751191858198,-490.0,0.00029315,3]
[368506199,1751191858207,-829.63,0.00029315,3]
[368506201,1751191858216,-490.0,0.00029315,3]
[368506203,1751191858226,-1091.18,0.00029315,3]
[368506205,1751191858235,-490.0,0.00029315,3]
[368506207,1751191858244,-490.0,0.00029315,3]
[368506209,1751191858254,-1264.85,0.00029315,3]
[368506211,1751191858263,-1402.48,0.00029315,3]
[368506213,1751191858272,-956.7,0.00029315,3]
[368506215,1751191858282,-490.0,0.00029315,3]
[368506217,1751191858291,-544.41,0.00029315,3]
[368506219,1751191858300,-490.0,0.00029315,3]
[368506221,1751191858310,-837.64,0.00029315,3]
[368506223,1751191858319,-527.67,0.00029315,3]
[368506225,1751191858329,-490.0,0.00029315,3]
[368506227,1751191858338,-490.0,0.00029315,3]
[368506228,1751191858347,-824.84,0.00029315,3]
[368506230,1751191858356,-490.0,0.00029315,3]
[368506232,1751191858366,-664.05,0.00029315,3]
[368506234,1751191858375,-776.65,0.00029315,3]
[368506236,1751191858385,-490.0,0.00029315,3]
[368506238,1751191858395,-490.0,0.00029315,3]
[368506240,1751191858404,-490.0,0.00029315,3]
[368506242,1751191858413,-490.0,0.00029315,3]
[368506244,1751191858422,-457.83085703,0.00029315,3]
[368506246,1751191858431,-490.0,0.00029315,3]
[368506248,1751191858441,-609.68,0.00029315,3]
[368506250,1751191858450,-787.44,0.00029315,3]
[368506252,1751191858459,-490.0,0.00029315,3]
[368506254,1751191858468,-490.0,0.00029315,3]
[368506256,1751191858478,-269.34133891,0.00029315,3]
[368506258,1751191858487,-919.46,0.00029315,3]
[368506260,1751191858497,-1237.83,0.00029315,3]
[368506262,1751191858506,-597.95194404,0.00029315,3]
[368506264,1751191858515,-1356.02,0.00029315,3]
[368506266,1751191858525,-490.0,0.00029315,3]
[368506268,1751191858534,-2516.86,0.00029315,3]
[368506270,1751191858543,-541.75306437,0.00029315,3]
[368506272,1751191858553,-490.0,0.00029315,3]
[368506274,1751191858562,-490.0,0.00029315,3]
[368506276,1751191858572,-490.0,0.00029315,3]
[368506278,1751191858582,-490.0,0.00029315,3]
[368506280,1751191858591,-3998.31,0.00029315,3]
[368506282,1751191858602,-490.0,0.00029315,3]
[368506284,1751191858611,-681.68,0.00029315,3]
[368506286,1751191858620,-490.0,0.00029315,3]
[368506288,1751191858630,-490.0,0.00029315,3]
[368506290,1751191858639,-1135.09,0.00029315,3]
[368506292,1751191858649,-6626.58,0.00029315,3]
[368506294,1751191858658,-490.0,0.00029315,3]
[368506296,1751191858668,-490.0,0.00029315,3]
[368506298,1751191858677,-490.0,0.00029315,3]
[368506300,1751191858687,-490.0,0.00029315,3]
[368506302,1751191858697,-1376.87,0.00029315,3]
[368506304,1751191858706,-490.0,0.00029315,3]
[368506306,1751191858716,-327.64,0.00029315,3]
[368506308,1751191858726,-6577.2,0.00029315,3]
[368506310,1751191858736,-1283.04,0.00029315,3]
[368506312,1751191858745,-1459.1,0.00029315,3]
[368506314,1751191858755,-1254.52,0.00029315,3]
[368506316,1751191858764,-490.0,0.00029315,3]
[368506318,1751191858773,-490.0,0.00029315,3]
[368506320,1751191858783,-769.1,0.00029315,3]
[368506322,1751191858792,-402.36,0.00029315,3]
[368506324,1751191858801,-511.92,0.00029315,3]
[368506326,1751191858811,-490.0,0.00029315,3]
[368506328,1751191858820,-352.1,0.00029315,3]
[368506330,1751191858831,-1039.8,0.00029315,3]